bitfinex-derivatives/quotes_BTCF0:USTF0_20251030
["timestamp","ask_amount","ask_price","bid_price","bid_amount"]
[1761809273739,0.80853129,111420.0,111410.0,0.00777064]
[1761809273942,1.41353129,111420.0,111410.0,0.00777064]
[1761809274136,1.60353129,111420.0,111410.0,0.03164908]
[1761809274532,1.60353129,111420.0,111410.0,0.00777063]
[1761809274838,1.54353129,111420.0,111410.0,0.00777063]
[1761809275039,1.54453129,111420.0,111410.0,0.03164907]
[1761809275532,1.54453129,111420.0,111410.0,0.00777063]
[1761809277533,1.66433286,111420.0,111410.0,0.00777063]
[1761809282344,1.22398429,111420.0,111410.0,0.03164907]
[1761809282541,0.05723,111410.0,111400.0,0.00347915]
[1761809282742,1.13733286,111410.0,111400.0,0.01645965]
[1761809282947,1.13733286,111410.0,111400.0,0.01645561]
[1761809284349,1.13833286,111410.0,111400.0,0.01645561]
[1761809284943,1.13833286,111410.0,111400.0,0.01745561]
[1761809285243,1.14233286,111410.0,111400.0,0.01745561]
[1761809286450,0.98268143,111410.0,111400.0,0.01745561]
[1761809286642,0.98268143,111410.0,111400.0,0.00447905]
[1761809287042,1.14233286,111410.0,111400.0,0.00447905]
[1761809287341,1.14233286,111410.0,111400.0,0.01747785]
[1761809290454,1.08233286,111410.0,111400.0,0.01747785]
[1761809291050,0.76268143,111410.0,111400.0,0.04687905]
[1761809291348,0.76268143,111410.0,111400.0,0.02563905]
[1761809291545,0.76268143,111410.0,111400.0,0.00447905]
[1761809292256,0.92233286,111410.0,111400.0,0.00447905]
[1761809293358,0.92233286,111410.0,111400.0,0.03613107]
[1761809293742,0.76268143,111410.0,111400.0,0.03613107]
[1761809294953,0.94268143,111410.0,111400.0,0.03613107]
[1761809295156,1.10233286,111410.0,111400.0,0.00447905]
[1761809295659,1.10233286,111410.0,111400.0,0.03613107]
[1761809296153,1.10233286,111410.0,111400.0,0.00447905]
[1761809296458,1.27233286,111410.0,111400.0,0.00447905]
[1761809297545,1.29652462,111410.0,111400.0,0.00447905]
[1761809301854,1.32071588,111410.0,111400.0,0.00447905]
[1761809302262,1.35301014,111410.0,111400.0,0.00447905]
[1761809303364,1.30462712,111410.0,111400.0,0.00447905]
[1761809303550,1.30462712,111410.0,111400.0,0.00447902]
[1761809306363,0.84497569,111410.0,111400.0,0.04815902]
[1761809306766,1.00462712,111410.0,111400.0,0.04815902]
[1761809306969,1.15462712,111410.0,111400.0,0.04815902]
[1761809307169,1.00462712,111410.0,111400.0,0.04815902]
[1761809307563,1.00462712,111410.0,111400.0,0.02583902]
[1761809308680,1.11462712,111410.0,111400.0,0.00447902]
[1761809309069,1.29462712,111410.0,111400.0,0.00447902]
[1761809309281,1.00462712,111410.0,111400.0,0.00447902]
[1761809309474,1.13462712,111410.0,111400.0,0.00447902]
[1761809311482,0.68532426,111410.0,111400.0,0.00447902]
[1761809311682,1.00462712,111410.0,111400.0,0.00447902]
[1761809312578,1.11462712,111410.0,111400.0,0.00447902]
[1761809316691,1.11462712,111410.0,111400.0,0.02622902]
[1761809317091,0.68532426,111410.0,111400.0,0.04918902]
[1761809317293,0.86917586,111410.0,111400.0,0.04918902]
[1761809319595,0.86917586,111410.0,111400.0,0.04918899]
[1761809319904,0.86917586,111410.0,111400.0,0.02622899]
[1761809320084,0.86917586,111410.0,111400.0,0.04918899]
[1761809320395,0.67721697,111410.0,111400.0,0.04918899]
[1761809321197,0.8368816,111410.0,111400.0,0.04918899]
[1761809327892,0.8368816,111410.0,111400.0,0.00447899]
[1761809331307,0.81269463,111410.0,111400.0,0.00447899]
[1761809335599,0.84498889,111410.0,111400.0,0.00447899]
[1761809336310,0.68532426,111410.0,111400.0,0.00447899]
[1761809336808,0.84498889,111410.0,111400.0,0.00447899]
[1761809338707,1.10498889,111410.0,111400.0,0.00447899]
[1761809339210,1.15337191,111410.0,111400.0,0.00447899]
[1761809339608,1.10498889,111410.0,111400.0,0.00447899]
[1761809340009,1.15337191,111410.0,111400.0,0.00447899]
[1761809341610,1.10498889,111410.0,111400.0,0.00447899]
[1761809342115,0.84498889,111410.0,111400.0,0.00447899]
[1761809343127,1.07498889,111410.0,111400.0,0.00447899]
[1761809343413,1.29074228,111410.0,111400.0,0.00447899]
[1761809343818,1.13107765,111410.0,111400.0,0.00447899]
[1761809344526,1.13107765,111410.0,111380.0,0.04639503]
[1761809344527,0.05737,111390.0,111380.0,0.04639503]
[1761809344816,1.03286931,111390.0,111380.0,0.04561]
[1761809345019,1.03286931,111390.0,111380.0,0.06962817]
[1761809345516,0.87320468,111390.0,111380.0,0.06962817]
[1761809345722,1.03386931,111390.0,111380.0,0.06962817]
[1761809345921,1.03394526,111390.0,111380.0,0.06962817]
[1761809346311,1.03294526,111390.0,111380.0,0.06962817]
[1761809346512,1.03594526,111390.0,111380.0,0.06962817]
[1761809347720,1.01171058,111390.0,111380.0,0.07936437]
[1761809348816,1.01171058,111390.0,111380.0,0.05613437]
[1761809349022,1.03594526,111390.0,111380.0,0.07936437]
[1761809350525,1.03594526,111390.0,111380.0,1.57936437]
[1761809350817,0.85204595,111390.0,111380.0,1.57936437]
[1761809351021,1.01171058,111390.0,111380.0,1.57936437]
[1761809353520,1.03594526,111390.0,111380.0,1.57936437]
[1761809354224,1.03594526,111390.0,111380.0,0.03375437]
[1761809354627,1.03594526,111390.0,111380.0,0.07801437]
[1761809354820,0.87628063,111390.0,111380.0,0.09120437]
[1761809355129,0.76899595,111390.0,111380.0,0.253549]
[1761809355329,0.76899595,111390.0,111380.0,0.28520102]
[1761809356214,0.76899595,111390.0,111380.0,0.86118285]
[1761809356628,0.40819595,111390.0,111380.0,0.26118285]
[1761809357418,0.40819595,111390.0,111380.0,0.10151822]
[1761809357617,0.40873595,111390.0,111380.0,0.10151822]
[1761809358224,0.42238595,111390.0,111380.0,0.09883822]
[1761809358530,0.42238595,111390.0,111380.0,0.08564822]
[1761809359422,0.40873595,111390.0,111380.0,0.70151822]
[1761809360018,0.42238595,111390.0,111380.0,0.70967221]
[1761809360425,0.42238595,111390.0,111380.0,0.10967221]
[1761809361230,0.42238595,111390.0,111380.0,0.08564822]
[1761809361823,0.58205058,111390.0,111380.0,0.08564822]
[1761809362018,0.61205058,111390.0,111380.0,0.08564822]
[1761809362227,0.97285058,111390.0,111380.0,0.0539962]
[1761809362524,0.99708526,111390.0,111380.0,0.03376239]
[1761809363435,0.99708526,111390.0,111380.0,0.05670239]
[1761809363630,0.99708526,111390.0,111380.0,0.07802239]
[1761809363832,0.96708526,111390.0,111380.0,0.07802239]
[1761809365540,0.97708526,111390.0,111380.0,0.07802239]
[1761809365937,0.97708526,111390.0,111380.0,0.03376239]
[1761809367335,0.33106926,111380.0,111360.0,2.02e-06]
[1761809367634,0.21856405,111370.0,111360.0,0.01318983]
[1761809367828,1.63016405,111370.0,111360.0,0.01318983]
[1761809368229,1.78982868,111370.0,111360.0,0.01318983]
[1761809368736,1.78982868,111370.0,111360.0,0.01418983]
[1761809368934,1.7999914,111370.0,111360.0,0.01418983]
[1761809369130,1.7999914,111370.0,111360.0,0.01318983]
[1761809369333,1.8009914,111370.0,111360.0,0.01418983]
[1761809370543,1.30116405,111370.0,111360.0,0.07163983]
[1761809370725,1.04692908,111370.0,111360.0,0.07163983]
[1761809372129,1.48659371,111370.0,111360.0,0.01418983]
[1761809372336,1.20659371,111370.0,111360.0,0.01418983]
[1761809372632,1.04692908,111370.0,111360.0,0.07163983]
[1761809373647,0.88726445,111370.0,111360.0,0.07163983]
[1761809373937,0.75726445,111370.0,111360.0,0.07157854]
[1761809374145,0.75726445,111370.0,111360.0,0.05845]
[1761809374441,0.75726445,111370.0,111360.0,0.07148222]
[1761809375935,0.91692908,111370.0,111360.0,0.07148222]
[1761809377340,0.9170052,111370.0,111360.0,0.23122297]
[1761809377727,0.9170052,111370.0,111360.0,0.07148222]
[1761809377941,0.9170052,111370.0,111360.0,0.21819075]
[1761809379743,0.5562052,111370.0,111360.0,0.21819075]
[1761809379936,0.36186445,111370.0,111360.0,0.21819075]
[1761809380643,0.37916445,111370.0,111360.0,0.21819075]
[1761809381138,0.5389052,111370.0,111360.0,0.21819075]
[1761809381346,0.5562052,111370.0,111360.0,0.21819075]
[1761809381733,0.5562052,111370.0,111360.0,0.22087075]
[1761809381941,0.5562052,111370.0,111360.0,0.21819075]
[1761809384651,0.5562052,111370.0,111360.0,0.05845]
[1761809385343,0.5562052,111370.0,111360.0,0.65845]
[1761809386040,0.5562052,111370.0,111360.0,0.05845]
[1761809388042,0.5962052,111370.0,111360.0,0.05845]
[1761809389050,1.12357595,111370.0,111360.0,0.01404355]
[1761809389449,0.9570052,111370.0,111360.0,0.05765355]
[1761809390245,0.9570052,111370.0,111360.0,0.07090355]
[1761809391549,0.9570052,111370.0,111340.0,0.32002028]
[1761809391550,0.03825,111350.0,111340.0,0.04747803]
[1761809391853,0.01708,111340.0,111330.0,0.10437911]
[1761809392047,0.54762075,111340.0,111330.0,0.26411986]
[1761809392246,0.37788,111340.0,111330.0,0.27404035]
[1761809392441,0.37788,111340.0,111330.0,0.27672035]
[1761809392647,0.3608,111340.0,111330.0,0.1169796]
[1761809392849,0.3608,111340.0,111330.0,0.27672035]
[1761809393054,0.3568,111340.0,111330.0,0.27672035]
[1761809393256,0.36534,111340.0,111330.0,0.27672035]
[1761809393654,0.36434,111340.0,111330.0,0.27672035]
[1761809393856,0.36534,111340.0,111330.0,0.28172035]
[1761809394250,0.36534,111340.0,111330.0,0.23624232]
[1761809394454,0.6933615,111340.0,111330.0,0.07382157]
[1761809394647,0.53362075,111340.0,111330.0,0.07382157]
[1761809394950,0.37388,111340.0,111330.0,0.23356232]
[1761809395157,0.3568,111340.0,111330.0,0.23624232]
[1761809396253,0.37388,111340.0,111330.0,0.23356232]
[1761809397351,0.37388,111340.0,111330.0,0.26558916]
[1761809398150,0.37388,111340.0,111330.0,0.23356232]
[1761809398649,0.53362075,111340.0,111330.0,0.23356232]
[1761809398847,0.7019015,111340.0,111330.0,0.00710108]
[1761809399162,0.6933615,111340.0,111330.0,0.07355528]
[1761809399675,0.6933615,111340.0,111330.0,0.23329603]
[1761809399676,0.53362075,111340.0,111330.0,0.23329603]
[1761809400047,0.53362075,111340.0,111330.0,0.23229603]
[1761809400255,0.53262075,111340.0,111330.0,0.06755528]
[1761809400462,0.53362075,111340.0,111330.0,0.06955528]
[1761809402070,0.85310225,111340.0,111330.0,0.00310108]
[1761809402360,0.7333615,111340.0,111330.0,0.00310108]
[1761809402546,0.57362075,111340.0,111330.0,0.05996108]
[1761809402961,0.57362075,111340.0,111330.0,0.06984243]
[1761809402962,0.7333615,111340.0,111330.0,0.06984243]
[1761809404161,0.7333615,111340.0,111330.0,0.05996108]
[1761809405963,0.7333615,111340.0,111330.0,0.03854108]
[1761809406148,0.7333615,111340.0,111330.0,0.00310108]
[1761809408766,0.01088,111310.0,111300.0,0.03202684]
[1761809409062,0.93222075,111310.0,111300.0,0.0706544]
[1761809409360,0.91222075,111310.0,111300.0,0.08060172]
[1761809409761,0.89231511,111310.0,111300.0,0.08060172]
[1761809410058,0.73257436,111310.0,111300.0,0.07558732]
[1761809410369,0.89331511,111310.0,111300.0,0.07558732]
[1761809410550,0.89331511,111310.0,111300.0,0.06564]
[1761809410751,0.89331511,111310.0,111300.0,0.05864]
[1761809412170,0.89331511,111310.0,111300.0,0.06829758]
[1761809412367,1.10305586,111310.0,111300.0,0.001]
[1761809412747,1.25305586,111310.0,111300.0,0.001]
[1761809413464,1.09431511,111310.0,111300.0,0.001]
[1761809413949,0.01088,111300.0,111290.0,0.24838759]
[1761809414148,0.01497436,111310.0,111300.0,0.05787]
[1761809414369,0.00409436,111310.0,111300.0,0.77017834]
[1761809414566,0.00409436,111310.0,111300.0,0.77285834]
[1761809414759,0.00409436,111310.0,111300.0,0.77017834]
[1761809414955,0.00409436,111310.0,111300.0,0.86002804]
[1761809415156,0.00409436,111310.0,111300.0,0.86270804]
[1761809415376,0.00309436,111310.0,111300.0,0.54322654]
[1761809415666,0.00309436,111310.0,111300.0,0.49922804]
[1761809415866,9.436e-05,111310.0,111300.0,0.49922804]
[1761809416250,0.00109436,111310.0,111300.0,0.49922804]
[1761809416461,0.00409436,111310.0,111300.0,0.49922804]
[1761809416968,9.436e-05,111310.0,111300.0,0.49922804]
[1761809417164,0.00209436,111310.0,111300.0,0.50190804]
[1761809417462,0.00209436,111310.0,111300.0,0.55867773]
[1761809417663,0.00209436,111310.0,111300.0,0.54667159]
[1761809417869,0.00209436,111310.0,111300.0,0.87815923]
[1761809418366,0.00209436,111310.0,111300.0,0.87547913]
[1761809419268,0.00209436,111310.0,111300.0,0.87815913]
[1761809419566,0.37168,111340.0,111330.0,0.05787]
[1761809419768,0.37168,111340.0,111330.0,0.21761075]
[1761809419769,0.53142075,111340.0,111330.0,0.21761075]
[1761809420475,0.53142075,111340.0,111320.0,0.24961386]
[1761809420476,0.01088,111330.0,111320.0,0.24961386]
[1761809420773,0.53150957,111330.0,111320.0,0.21761075]
[1761809421580,0.53150957,111330.0,111320.0,0.05787]
[1761809421957,0.01632,111320.0,111310.0,0.03200311]
[1761809422258,0.36624,111320.0,111310.0,0.20417075]
[1761809422456,0.53142075,111320.0,111310.0,0.21761075]
[1761809422866,0.37168,111320.0,111310.0,0.24961386]
[1761809423264,0.53342075,111320.0,111310.0,0.24961386]
[1761809423770,0.53442075,111320.0,111310.0,0.24961386]
[1761809425066,0.53442075,111320.0,111310.0,0.21761075]
[1761809425857,0.53442075,111320.0,111310.0,0.05787]
[1761809426060,0.53442075,111320.0,111310.0,0.21761075]
[1761809426467,0.53442075,111320.0,111310.0,0.05787]
[1761809426765,0.53442075,111320.0,111310.0,0.21761075]
[1761809428670,0.53442075,111320.0,111310.0,0.05787]
[1761809429167,0.01088,111310.0,111300.0,0.08987311]
[1761809429367,0.53142075,111310.0,111300.0,0.05787]
[1761809429573,0.53142075,111310.0,111300.0,0.21761075]
[1761809429974,0.53142075,111310.0,111300.0,0.05787]
[1761809430370,0.53242075,111310.0,111300.0,0.05987]
[1761809432268,0.37268,111310.0,111300.0,0.3793515]
[1761809432675,0.37268,111310.0,111300.0,0.05987]
[1761809432874,0.37268,111310.0,111300.0,0.3793515]
[1761809433169,0.01188,111310.0,111300.0,0.21961075]
[1761809433375,0.01188,111310.0,111300.0,0.25161386]
[1761809434368,0.01188,111310.0,111300.0,0.21961075]
[1761809434577,0.01188,111310.0,111300.0,0.25161386]
[1761809434760,0.001,111310.0,111300.0,0.50388431]
[1761809435467,0.00644,111310.0,111300.0,0.41135461]
[1761809436072,0.00644,111310.0,111300.0,0.50388431]
[1761809436876,0.00644,111310.0,111300.0,0.50120431]
[1761809437072,0.00644,111310.0,111300.0,0.50388431]
[1761809437477,0.00644,111310.0,111300.0,0.18440281]
[1761809437877,0.001,111310.0,111300.0,0.18440281]
[1761809438679,0.00644,111310.0,111300.0,0.18440281]
[1761809439380,0.001,111310.0,111300.0,0.88019414]
[1761809441577,0.39595482,111330.0,111320.0,0.05662]
[1761809441779,0.37176882,111330.0,111320.0,0.05662]
[1761809442483,0.37176882,111330.0,111320.0,0.1464546]
[1761809442978,0.37476882,111330.0,111320.0,0.1474546]
[1761809443782,0.37576882,111330.0,111320.0,0.1474546]
[1761809444177,0.37576882,111330.0,111320.0,0.1474535]
[1761809444790,0.36488882,111330.0,111320.0,0.1474535]
[1761809444997,0.36932882,111330.0,111320.0,0.1474535]
[1761809445209,0.37476882,111330.0,111320.0,0.1474535]
[1761809445500,0.37476882,111330.0,111320.0,0.1501335]
[1761809446095,0.37476882,111330.0,111320.0,0.1474535]
[1761809450102,0.75394615,111330.0,111320.0,0.03635]
[1761809450305,0.78625906,111330.0,111320.0,0.001]
[1761809450508,0.76207306,111330.0,111320.0,0.05762]
[1761809450695,0.45130763,111330.0,111320.0,0.05762]
[1761809450896,0.41899472,111330.0,111320.0,0.05762]
[1761809451209,0.45130763,111330.0,111320.0,0.05762]
[1761809451895,0.41899472,111330.0,111320.0,0.05762]
[1761809454706,0.39476882,111330.0,111320.0,0.05762]
[1761809454900,0.41900292,111330.0,111320.0,0.05762]
[1761809455501,0.41900292,111330.0,111320.0,0.03635]
[1761809456903,0.41900292,111330.0,111320.0,0.05762]
[1761809459010,0.39900292,111330.0,111320.0,0.05762]
[1761809461205,0.55885693,111330.0,111320.0,0.05762]
[1761809461407,0.56885693,111330.0,111320.0,0.001]
[1761809461912,0.56885693,111330.0,111320.0,0.02363]
[1761809462216,0.56885693,111330.0,111320.0,0.05762]
[1761809464414,0.56885693,111330.0,111320.0,0.001]
[1761809464811,0.56885693,111330.0,111320.0,0.1492746]
[1761809465015,0.55885693,111330.0,111320.0,0.05944]
[1761809465614,0.55885693,111330.0,111320.0,0.1492746]
[1761809466313,0.39900292,111330.0,111320.0,0.1492746]
[1761809467309,0.39900292,111330.0,111320.0,0.30912861]
[1761809467904,0.37476882,111330.0,111320.0,0.30912861]
[1761809468220,0.37476882,111330.0,111320.0,0.1492746]
[1761809469418,0.37476882,111330.0,111320.0,0.30912861]
[1761809469814,0.37476882,111330.0,111320.0,0.1492746]
[1761809471320,0.37376882,111330.0,111320.0,0.1522746]
[1761809471623,0.00208882,111330.0,111320.0,0.67292861]
[1761809471807,0.00208882,111330.0,111320.0,0.70493172]
[1761809472008,0.01296882,111330.0,111320.0,0.70493172]
[1761809472427,0.01296882,111330.0,111320.0,0.34413172]
[1761809472810,0.01196882,111330.0,111320.0,0.34513172]
[1761809473119,0.01196882,111330.0,111320.0,0.70593172]
[1761809473120,0.00108882,111330.0,111320.0,0.70593172]
[1761809473325,0.00552882,111330.0,111320.0,0.70193172]
[1761809473509,0.00652882,111330.0,111320.0,0.70393172]
[1761809473710,0.00652882,111330.0,111320.0,0.70293172]
[1761809475023,0.01196882,111330.0,111320.0,0.70293172]
[1761809475519,0.01196882,111330.0,111320.0,0.54307771]
[1761809475726,0.01196882,111330.0,111320.0,0.70293172]
[1761809476825,0.00108882,111330.0,111320.0,0.70293172]
[1761809478213,0.00108882,111330.0,111320.0,0.70561172]
[1761809480719,0.03510282,111350.0,111340.0,0.1459685]
[1761809481919,0.39590282,111350.0,111340.0,0.1459685]
[1761809482818,0.39590282,111350.0,111340.0,0.15468488]
[1761809483026,0.39890282,111350.0,111340.0,0.15568488]
[1761809483627,0.39990282,111350.0,111340.0,0.15568488]
[1761809488831,0.39990282,111350.0,111340.0,0.31553889]
[1761809489135,0.02822282,111350.0,111340.0,0.31553889]
[1761809489722,0.02822282,111350.0,111340.0,1.81553889]
[1761809491924,0.03366282,111350.0,111340.0,1.81553889]
[1761809492124,0.03910282,111350.0,111340.0,1.81553889]
[1761809492325,0.03910282,111350.0,111340.0,1.65568488]
[1761809496938,0.01488,111350.0,111340.0,1.68768799]
[1761809499245,0.01488,111350.0,111340.0,1.847542]
[1761809499547,0.01488,111350.0,111340.0,1.84746796]
[1761809500445,0.004,111350.0,111340.0,1.84746796]
[1761809501232,0.004,111350.0,111340.0,2.36804793]
[1761809504844,0.004,111350.0,111340.0,2.37072793]
[1761809505144,0.004,111350.0,111340.0,2.36804793]
[1761809506445,0.01488,111350.0,111340.0,2.36804793]
[1761809506646,0.00944,111350.0,111340.0,2.36804793]
[1761809506847,0.004,111350.0,111340.0,2.36804793]
[1761809507146,0.004,111350.0,111340.0,2.43879349]
[1761809513635,0.004,111350.0,111340.0,2.44147349]
[1761809513838,0.004,111350.0,111340.0,2.43879349]
[1761809521740,0.53545997,111350.0,111340.0,0.09786949]
[1761809521940,0.57545997,111350.0,111340.0,0.06586638]
[1761809522149,0.57545997,111350.0,111340.0,0.15568488]
[1761809522644,0.57545997,111350.0,111340.0,0.06586638]
[1761809522839,0.57545997,111350.0,111340.0,0.09786949]
[1761809523257,0.57545997,111350.0,111340.0,0.06586638]
[1761809523850,1.17545997,111350.0,111340.0,0.06586638]
[1761809524349,1.17145997,111350.0,111340.0,0.06486638]
[1761809524554,1.17245997,111350.0,111340.0,0.06686638]
[1761809524958,1.17145997,111350.0,111340.0,0.06486638]
[1761809525153,1.17245997,111350.0,111340.0,0.06586638]
[1761809525356,1.48305997,111350.0,111340.0,0.06586638]
[1761809526462,1.48405997,111350.0,111340.0,0.09786949]
[1761809527861,1.48405997,111350.0,111340.0,0.18768799]
[1761809528555,1.48405997,111350.0,111340.0,0.09786949]
[1761809528758,1.64383994,111350.0,111340.0,0.04171949]
[1761809528965,1.64383994,111350.0,111340.0,0.00971638]
[1761809529260,1.48405997,111350.0,111340.0,0.15752488]
[1761809529659,1.44397997,111350.0,111340.0,0.18952799]
[1761809529861,0.37368,111350.0,111340.0,0.34930796]
[1761809530063,0.6842,111350.0,111340.0,0.34930796]
[1761809530251,0.6842,111350.0,111340.0,0.18952799]
[1761809530558,0.6842,111350.0,111340.0,0.34930796]
[1761809530760,0.37368,111350.0,111340.0,0.50908793]
[1761809530953,0.37368,111350.0,111340.0,0.34930796]
[1761809532755,0.002,111350.0,111340.0,0.86988793]
[1761809532961,0.002,111350.0,111340.0,0.9178926]
[1761809533257,0.002,111350.0,111340.0,0.88588949]
[1761809533658,0.002,111350.0,111340.0,1.19908949]
[1761809533861,0.002,111350.0,111340.0,1.15108482]
[1761809534057,0.002,111350.0,111340.0,1.14840482]
[1761809535051,0.00744,111350.0,111340.0,1.14840482]
[1761809535259,0.17265997,111350.0,111340.0,0.62790485]
[1761809536262,0.01288,111350.0,111340.0,0.62790485]
[1761809536453,0.17265997,111350.0,111340.0,0.46812488]
[1761809536654,0.17265997,111350.0,111340.0,0.62790485]
[1761809536850,0.01288,111350.0,111340.0,0.62790485]
[1761809537256,0.00744,111350.0,111340.0,0.98870485]
[1761809537568,0.00744,111350.0,111340.0,0.62790485]
[1761809537767,0.01288,111350.0,111340.0,0.62790485]
[1761809538159,0.01288,111350.0,111340.0,0.98870485]
[1761809538763,0.00744,111350.0,111340.0,0.62790485]
[1761809539064,0.01288,111350.0,111340.0,0.67590952]
[1761809539464,0.002,111350.0,111340.0,0.67590952]
[1761809539669,0.01288,111350.0,111340.0,1.03670952]
[1761809540172,0.002,111350.0,111340.0,1.19648949]
[1761809540467,0.01288,111350.0,111340.0,1.19648949]
[1761809540667,0.01288,111350.0,111340.0,0.67590952]
[1761809541376,0.01288,111350.0,111340.0,0.70792502]
[1761809541558,0.01288,111350.0,111340.0,0.67590952]
[1761809542355,0.00744,111350.0,111340.0,1.03670952]
[1761809542556,0.01288,111350.0,111340.0,1.03670952]
[1761809542756,0.01288,111350.0,111340.0,0.67590952]
[1761809543165,0.01288,111350.0,111340.0,1.03670952]
[1761809543676,0.00744,111350.0,111340.0,1.03670952]
[1761809544267,0.002,111350.0,111340.0,1.19648949]
[1761809544769,0.00744,111350.0,111340.0,1.26814032]
[1761809545071,0.002,111350.0,111340.0,1.26814032]
[1761809547358,0.002,111350.0,111340.0,1.27082032]
[1761809547559,0.002,111350.0,111340.0,1.26814032]
[1761809547969,0.002,111350.0,111340.0,1.27082032]
[1761809548170,0.002,111350.0,111340.0,1.26814032]
[1761809550675,0.002,111350.0,111340.0,1.27082032]
[1761809551180,0.002,111350.0,111340.0,1.26814032]
[1761809553165,0.00744,111350.0,111340.0,1.26814032]
[1761809553473,0.17265997,111350.0,111340.0,1.1401193]
[1761809553874,0.17265997,111350.0,111340.0,0.98846485]
[1761809554080,0.01288,111350.0,111340.0,0.67810485]
[1761809554282,0.01288,111350.0,111340.0,0.72610952]
[1761809554572,0.17265997,111350.0,111340.0,0.72610952]
[1761809555372,0.01288,111350.0,111340.0,0.72610952]
[1761809558482,0.17265997,111350.0,111340.0,0.72610952]
[1761809559276,0.01288,111350.0,111340.0,0.56632955]
[1761809559484,0.01288,111350.0,111340.0,0.20552955]
[1761809567692,0.00744,111350.0,111340.0,0.20552955]
[1761809568501,0.002,111350.0,111340.0,0.20552955]
[1761809568988,0.00744,111350.0,111340.0,0.20552955]
[1761809569891,0.01288,111350.0,111340.0,0.23758099]
[1761809570288,0.53346724,111350.0,111340.0,0.20552955]
[1761809570482,0.56346724,111350.0,111340.0,0.18957897]
[1761809570786,0.87358724,111350.0,111340.0,0.18957897]
[1761809572696,0.87358724,111350.0,111340.0,0.23758364]
[1761809573287,0.87358724,111350.0,111340.0,0.18957897]
[1761809573786,0.87358724,111350.0,111340.0,0.23758364]
[1761809573987,1.47358724,111350.0,111340.0,0.09976047]
[1761809574391,0.87358724,111350.0,111340.0,0.09976047]
[1761809574695,0.87626724,111350.0,111340.0,0.09976047]
[1761809575095,0.87358724,111350.0,111340.0,0.09976047]
[1761809575294,0.87358724,111350.0,111340.0,0.06770638]
[1761809575898,0.87358724,111350.0,111340.0,0.09976047]
[1761809576300,0.87358724,111350.0,111340.0,0.06770638]
[1761809576800,0.87358724,111350.0,111340.0,0.15752448]
[1761809578101,0.87358724,111350.0,111340.0,0.18957857]
[1761809579300,0.87358724,111350.0,111340.0,0.15752448]
[1761809579500,1.47358724,111350.0,111340.0,0.15752448]
[1761809579705,1.47358724,111350.0,111340.0,0.06770638]
[1761809581206,1.16346724,111350.0,111340.0,0.06770638]
[1761809581405,1.47362724,111350.0,111340.0,0.06770638]
[1761809581795,1.47362724,111350.0,111340.0,0.15752448]
[1761809582804,1.47362724,111350.0,111340.0,1.65752448]
[1761809584202,1.49785416,111350.0,111340.0,1.65752448]
[1761809584400,1.33806692,111350.0,111340.0,1.65752448]
[1761809584707,1.49785416,111350.0,111340.0,1.65752448]
[1761809585811,0.58769416,111350.0,111340.0,1.65752448]
[1761809586014,0.002,111350.0,111340.0,1.81731172]
[1761809586220,0.002,111350.0,111340.0,2.21016581]
[1761809586610,0.002,111350.0,111340.0,2.05037857]
[1761809586811,0.002,111350.0,111340.0,2.21016581]
[1761809591520,0.69518692,111370.0,111360.0,0.1474119]
[1761809591521,0.05653983,111370.0,111360.0,0.1474119]
[1761809591820,0.02422692,111370.0,111360.0,0.1474119]
[1761809592818,0.57207416,111370.0,111360.0,0.05861]
[1761809593212,0.57407416,111370.0,111360.0,0.05861]
[1761809595017,0.57407416,111370.0,111360.0,0.1484123]
[1761809595317,0.60638707,111370.0,111360.0,0.1484123]
[1761809595818,0.57407416,111370.0,111360.0,0.1484123]
[1761809598314,0.56907416,111370.0,111360.0,0.1474123]
[1761809598526,0.56907416,111370.0,111360.0,0.1494123]
[1761809598527,0.57007416,111370.0,111360.0,0.1494123]
[1761809599316,0.56807416,111370.0,111360.0,0.1494123]
[1761809600413,0.60038707,111370.0,111360.0,0.1494123]
[1761809602114,0.59038707,111370.0,111360.0,0.1494123]
[1761809602425,0.43059983,111370.0,111360.0,0.1494123]
[1761809602624,0.34788692,111370.0,111360.0,0.1494123]
[1761809602823,0.34792692,111370.0,111360.0,0.1494123]
[1761809603214,0.71872692,111370.0,111360.0,0.1494122]
[1761809604226,0.40828692,111370.0,111360.0,0.1494122]
[1761809604528,0.39828692,111370.0,111360.0,0.1494122]
[1761809606917,0.03748692,111370.0,111360.0,0.1494122]
[1761809607116,0.03135692,111370.0,111360.0,0.1494122]
[1761809608223,0.00713,111370.0,111360.0,0.1494122]
[1761809608934,0.03748692,111370.0,111360.0,0.1494122]
[1761809609228,0.03748692,111370.0,111360.0,0.05961]
[1761809609229,0.55807416,111370.0,111360.0,0.05961]
[1761809610124,0.55807416,111370.0,111360.0,0.1494111]
[1761809611829,0.39828692,111370.0,111360.0,0.1494111]
[1761809612517,0.55807416,111370.0,111360.0,0.1494111]
[1761809615429,0.59038707,111370.0,111360.0,0.1494111]
[1761809615930,0.43059983,111370.0,111360.0,0.1494111]
[1761809616428,0.39828692,111370.0,111360.0,0.1494111]
[1761809617135,0.03748692,111370.0,111360.0,0.66999834]
[1761809617318,0.34768692,111370.0,111360.0,0.66999834]
[1761809617822,0.03748692,111370.0,111360.0,0.66999834]
[1761809619828,0.03135692,111370.0,111360.0,0.66999834]
[1761809620022,0.02522692,111370.0,111360.0,0.66999834]
[1761809620922,0.02522692,111370.0,111360.0,0.98015834]
[1761809621324,0.02522692,111370.0,111360.0,1.13976154]
[1761809622032,0.001,111370.0,111360.0,1.45449563]
[1761809622337,0.001,111370.0,111360.0,1.17181563]
[1761809623328,0.00713,111370.0,111360.0,0.8203711]
[1761809623534,0.01326,111370.0,111360.0,1.13976154]
[1761809623737,0.00713,111370.0,111360.0,1.13976154]
[1761809624934,0.001,111370.0,111360.0,1.13976154]
[1761809626531,0.00713,111370.0,111360.0,1.13976154]
[1761809626829,0.01326,111370.0,111360.0,0.66990632]
[1761809627036,0.17295522,111370.0,111360.0,0.4594511]
[1761809627237,0.19718214,111370.0,111360.0,0.30910632]
[1761809629431,0.03748692,111370.0,111360.0,0.30910632]
[1761809629634,0.19718214,111370.0,111360.0,0.30910632]
[1761809630233,0.03748692,111370.0,111360.0,0.30910632]
[1761809631445,0.03748692,111370.0,111360.0,0.66990632]
[1761809631630,0.03748692,111370.0,111360.0,0.5102111]
[1761809631831,0.03748692,111370.0,111360.0,0.82960154]
[1761809632332,0.02522692,111370.0,111360.0,0.82960154]
[1761809632734,0.001,111370.0,111360.0,0.82960154]
[1761809633335,0.001,111370.0,111360.0,0.66990632]
[1761809633336,0.02522692,111370.0,111360.0,0.66990632]
[1761809633641,0.02522692,111370.0,111360.0,0.82960154]
[1761809633842,0.03135692,111370.0,111360.0,0.82960154]
[1761809634842,0.03748692,111370.0,111360.0,0.66990632]
[1761809635843,0.03135692,111370.0,111360.0,0.66990632]